[Event "Titled Tuesday Blitz October 11 Late 2022"]
[White "Taboas Rodriguez, Daniel"]
[Black "Nasuta, Grzegorz"]
[WhiteFideId "2208466"]
[BlackFideId "1141686"]
[WhiteElo "2429"]
[BlackElo "2442"]
[Result "1-0"]
[Round "09"]
[TimeControl "180+1"]
[Date "2022.10.11"]
[WhiteClock "0:00:17"]
[BlackClock "0:00:06"]

1. d4 {[%clk 0:03:00]}  d5 {[%clk 0:03:00]} 2. c4 {[%clk 0:02:59]}  e6 {[%clk 0:03:00]} 3. Nf3 {[%clk 0:02:58]}  c6 {[%clk 0:03:01]} 4. Bg5 {[%clk 0:02:57]}  f6 {[%clk 0:02:58]} 5. Bf4 {[%clk 0:02:57]}  dxc4 {[%clk 0:02:58]} 6. e4 {[%clk 0:02:57]}  b5 {[%clk 0:02:59]} 7. Be2 {[%clk 0:02:52]}  Ne7 {[%clk 0:02:59]} 8. O-O {[%clk 0:02:52]}  Ng6 {[%clk 0:02:59]} 9. Bg3 {[%clk 0:02:51]}  Bd6 {[%clk 0:02:59]} 10. e5 {[%clk 0:02:51]}  fxe5 {[%clk 0:02:53]} 11. dxe5 {[%clk 0:02:52]}  Be7 {[%clk 0:02:54]} 12. Qc2 {[%clk 0:02:47]}  Nd7 {[%clk 0:02:52]} 13. Rd1 {[%clk 0:02:39]}  Bb7 {[%clk 0:02:51]} 14. Nd4 {[%clk 0:02:38]}  Ngf8 {[%clk 0:02:42]} 15. a4 {[%clk 0:02:28]}  Qb6 {[%clk 0:02:36]} 16. axb5 {[%clk 0:02:21]}  cxb5 {[%clk 0:02:37]} 17. Nc3 {[%clk 0:02:22]}  a6 {[%clk 0:02:36]} 18. Ne4 {[%clk 0:02:17]}  Bd5 {[%clk 0:02:25]} 19. Nd6+ {[%clk 0:01:59]}  Bxd6 {[%clk 0:02:25]} 20. exd6 {[%clk 0:02:00]}  Nf6 {[%clk 0:02:05]} 21. Bf3 {[%clk 0:01:34]}  Bxf3 {[%clk 0:01:59]} 22. Nxf3 {[%clk 0:01:35]}  N8d7 {[%clk 0:01:58]} 23. Ng5 {[%clk 0:01:30]}  e5 {[%clk 0:01:46]} 24. Ne6 {[%clk 0:01:25]}  Kf7 {[%clk 0:01:46]} 25. Ng5+ {[%clk 0:01:19]}  Kg8 {[%clk 0:01:40]} 26. Qf5 {[%clk 0:01:19]}  Re8 {[%clk 0:01:40]} 27. Rd2 {[%clk 0:01:05]}  Qc6 {[%clk 0:01:37]} 28. Re1 {[%clk 0:01:01]}  g6 {[%clk 0:01:13]} 29. Qh3 {[%clk 0:00:49]}  h6 {[%clk 0:01:12]} 30. Nf3 {[%clk 0:00:46]}  c3 {[%clk 0:00:29]} 31. bxc3 {[%clk 0:00:45]}  Qxc3 {[%clk 0:00:30]} 32. Rdd1 {[%clk 0:00:42]}  Kf7 {[%clk 0:00:22]} 33. Rc1 {[%clk 0:00:39]}  Qb2 {[%clk 0:00:20]} 34. Rc7 {[%clk 0:00:38]}  Re6 {[%clk 0:00:09]} 35. Nxe5+ {[%clk 0:00:28]}  Rxe5 {[%clk 0:00:08]} 36. Bxe5 {[%clk 0:00:28]}  Re8 {[%clk 0:00:06]} 37. Rxd7+ {[%clk 0:00:25]}  Kg8 {[%clk 0:00:06]} 38. Qxh6 {[%clk 0:00:17]} 1-0


[Site "https://www.chess.com"]

[Event "Titled Tuesday Blitz October 11 Late 2022"]
[White "Tarasova, Viktoriya"]
[Black "Leiva, Gianmarco"]
[WhiteFideId "4175840"]
[BlackFideId "3804399"]
[WhiteElo "2182"]
[BlackElo "2285"]
[Result "1-0"]
[Round "09"]
[TimeControl "180+1"]
[Date "2022.10.12"]
[WhiteClock "0:00:19"]
[BlackClock "0:00:03"]

1. d4 {[%clk 0:03:00]}  Nf6 {[%clk 0:02:59]} 2. c4 {[%clk 0:03:00]}  e6 {[%clk 0:02:59]} 3. Nc3 {[%clk 0:02:52]}  Bb4 {[%clk 0:02:57]} 4. Nf3 {[%clk 0:02:51]}  O-O {[%clk 0:02:53]} 5. Bg5 {[%clk 0:02:50]}  c5 {[%clk 0:02:51]} 6. e3 {[%clk 0:02:49]}  h6 {[%clk 0:02:37]} 7. Bh4 {[%clk 0:02:43]}  cxd4 {[%clk 0:02:36]} 8. exd4 {[%clk 0:02:43]}  d5 {[%clk 0:02:37]} 9. cxd5 {[%clk 0:02:37]}  g5 {[%clk 0:02:23]} 10. Bg3 {[%clk 0:02:36]}  exd5 {[%clk 0:02:19]} 11. Be2 {[%clk 0:02:31]}  Ne4 {[%clk 0:02:19]} 12. Rc1 {[%clk 0:02:02]}  Nc6 {[%clk 0:02:17]} 13. O-O {[%clk 0:02:01]}  Re8 {[%clk 0:02:06]} 14. Bb5 {[%clk 0:01:54]}  Bg4 {[%clk 0:01:37]} 15. Bxc6 {[%clk 0:01:49]}  bxc6 {[%clk 0:01:36]} 16. h3 {[%clk 0:01:44]}  Bxf3 {[%clk 0:01:30]} 17. gxf3 {[%clk 0:01:40]}  Nxg3 {[%clk 0:00:35]} 18. fxg3 {[%clk 0:01:39]}  Bd6 {[%clk 0:00:28]} 19. Ne2 {[%clk 0:01:19]}  Rb8 {[%clk 0:00:18]} 20. b3 {[%clk 0:01:17]}  Rb7 {[%clk 0:00:06]} 21. Kg2 {[%clk 0:00:57]}  Rbe7 {[%clk 0:00:06]} 22. Rc2 {[%clk 0:00:51]}  Bb8 {[%clk 0:00:04]} 23. f4 {[%clk 0:00:46]}  Qd6 {[%clk 0:00:04]} 24. Rf3 {[%clk 0:00:38]}  Re4 {[%clk 0:00:04]} 25. Qf1 {[%clk 0:00:34]}  Qe6 {[%clk 0:00:03]} 26. Nc3 {[%clk 0:00:19]} 1-0


[Site "https://www.chess.com"]

[Event "Titled Tuesday Blitz October 11 Late 2022"]
[White "Tari, Aryan"]
[Black "Koziorowicz, Michal"]
[WhiteFideId "1510045"]
[BlackFideId "21809194"]
[WhiteElo "2612"]
[BlackElo "2220"]
[Result "1-0"]
[Round "09"]
[TimeControl "180+1"]
[Date "2022.10.11"]
[WhiteClock "0:00:55"]
[BlackClock "0:00:02"]

1. e4 {[%clk 0:03:00]}  c5 {[%clk 0:03:00]} 2. Nc3 {[%clk 0:03:00]}  Nc6 {[%clk 0:02:59]} 3. f4 {[%clk 0:03:01]}  g6 {[%clk 0:03:00]} 4. Nf3 {[%clk 0:03:01]}  Bg7 {[%clk 0:03:00]} 5. Bb5 {[%clk 0:03:02]}  Nd4 {[%clk 0:02:58]} 6. O-O {[%clk 0:03:02]}  Nxb5 {[%clk 0:02:54]} 7. Nxb5 {[%clk 0:03:03]}  d6 {[%clk 0:02:54]} 8. d3 {[%clk 0:03:03]}  Nf6 {[%clk 0:02:53]} 9. Qe1 {[%clk 0:03:02]}  O-O {[%clk 0:02:53]} 10. f5 {[%clk 0:02:59]}  a6 {[%clk 0:02:47]} 11. Nc3 {[%clk 0:02:58]}  b5 {[%clk 0:02:48]} 12. Qh4 {[%clk 0:02:58]}  Bb7 {[%clk 0:02:29]} 13. Bh6 {[%clk 0:02:55]}  b4 {[%clk 0:02:26]} 14. Ne2 {[%clk 0:02:50]}  c4 {[%clk 0:02:11]} 15. Kh1 {[%clk 0:02:36]}  b3 {[%clk 0:02:06]} 16. axb3 {[%clk 0:02:36]}  cxd3 {[%clk 0:02:07]} 17. cxd3 {[%clk 0:02:36]}  Qb6 {[%clk 0:02:07]} 18. Nf4 {[%clk 0:02:19]}  Qxb3 {[%clk 0:01:54]} 19. Ng5 {[%clk 0:02:19]}  Rfc8 {[%clk 0:01:24]} 20. Rae1 {[%clk 0:01:59]}  Bh8 {[%clk 0:01:23]} 21. d4 {[%clk 0:01:46]}  Rc2 {[%clk 0:01:04]} 22. e5 {[%clk 0:01:46]}  dxe5 {[%clk 0:01:05]} 23. dxe5 {[%clk 0:01:46]}  Nd5 {[%clk 0:00:50]} 24. fxg6 {[%clk 0:01:28]}  hxg6 {[%clk 0:00:48]} 25. Bf8 {[%clk 0:01:20]}  Nf6 {[%clk 0:00:29]} 26. exf6 {[%clk 0:01:21]}  Bxf6 {[%clk 0:00:15]} 27. Qh7+ {[%clk 0:01:13]}  Kxf8 {[%clk 0:00:15]} 28. Nfe6+ {[%clk 0:01:13]}  Ke8 {[%clk 0:00:14]} 29. Qxf7+ {[%clk 0:01:12]}  Kd7 {[%clk 0:00:14]} 30. Nc5+ {[%clk 0:01:11]}  Kc7 {[%clk 0:00:09]} 31. Rxe7+ {[%clk 0:00:57]}  Bxe7 {[%clk 0:00:05]} 32. Qxe7+ {[%clk 0:00:58]}  Kb8 {[%clk 0:00:02]} 33. Nxb3 {[%clk 0:00:55]} 1-0


[Site "https://www.chess.com"]

[Event "Titled Tuesday Blitz October 11 Late 2022"]
[White "Tarnowska, Aleksandra"]
[Black "Sibilio, Mario"]
[WhiteFideId "1180967"]
[BlackFideId "800422"]
[WhiteElo "1776"]
[BlackElo "2296"]
[Result "0-1"]
[Round "09"]
[TimeControl "180+1"]
[Date "2022.10.12"]
[WhiteClock "0:00:02"]
[BlackClock "0:00:44"]

1. e4 {[%clk 0:03:00]}  c5 {[%clk 0:02:57]} 2. Nf3 {[%clk 0:02:59]}  Nc6 {[%clk 0:02:56]} 3. Bb5 {[%clk 0:02:59]}  b6 {[%clk 0:02:56]} 4. O-O {[%clk 0:02:56]}  Bb7 {[%clk 0:02:54]} 5. c3 {[%clk 0:02:52]}  a6 {[%clk 0:02:52]} 6. Ba4 {[%clk 0:02:47]}  b5 {[%clk 0:02:35]} 7. Bc2 {[%clk 0:02:45]}  e6 {[%clk 0:02:33]} 8. d4 {[%clk 0:02:11]}  cxd4 {[%clk 0:02:31]} 9. Nxd4 {[%clk 0:02:07]}  Nf6 {[%clk 0:02:23]} 10. Nd2 {[%clk 0:02:00]}  Bc5 {[%clk 0:02:14]} 11. N2f3 {[%clk 0:01:57]}  d5 {[%clk 0:02:01]} 12. e5 {[%clk 0:01:33]}  Ne4 {[%clk 0:01:56]} 13. Re1 {[%clk 0:01:18]}  O-O {[%clk 0:01:51]} 14. Nxc6 {[%clk 0:00:53]}  Bxc6 {[%clk 0:01:50]} 15. Nd4 {[%clk 0:00:53]}  Bb7 {[%clk 0:01:35]} 16. Qh5 {[%clk 0:00:42]}  f5 {[%clk 0:01:11]} 17. Nxe6 {[%clk 0:00:17]}  Bxf2+ {[%clk 0:01:09]} 18. Kh1 {[%clk 0:00:17]}  Qb6 {[%clk 0:01:04]} 19. Nxf8 {[%clk 0:00:16]}  Bxe1 {[%clk 0:01:00]} 20. Qxh7+ {[%clk 0:00:15]}  Kxf8 {[%clk 0:00:59]} 21. Qxf5+ {[%clk 0:00:10]}  Kg8 {[%clk 0:00:55]} 22. Bxe4 {[%clk 0:00:04]}  dxe4 {[%clk 0:00:52]} 23. Qg4 {[%clk 0:00:02]}  Rf8 {[%clk 0:00:46]} 24. h3 {[%clk 0:00:02]}  Rf1+ {[%clk 0:00:44]} 25. Kh2 {[%clk 0:00:02]}  Qg1# {[%clk 0:00:44]} 0-1


[Site "https://www.chess.com"]

[Event "Titled Tuesday Blitz October 11 Late 2022"]
[White "Tayar, Jonathan"]
[Black "Diaz Rosas, Julio Cesar"]
[WhiteFideId "2606534"]
[BlackFideId "5105099"]
[WhiteElo "2406"]
[BlackElo "2246"]
[Result "1/2-1/2"]
[Round "09"]
[TimeControl "180+1"]
[Date "2022.10.11"]
[WhiteClock "0:00:07"]
[BlackClock "0:00:13"]

1. e4 {[%clk 0:03:00]}  e6 {[%clk 0:02:57]} 2. d4 {[%clk 0:02:59]}  d5 {[%clk 0:02:57]} 3. Nc3 {[%clk 0:03:00]}  dxe4 {[%clk 0:02:56]} 4. Nxe4 {[%clk 0:02:58]}  Nd7 {[%clk 0:02:56]} 5. Nf3 {[%clk 0:02:57]}  Ngf6 {[%clk 0:02:54]} 6. Bg5 {[%clk 0:02:57]}  Be7 {[%clk 0:02:54]} 7. Nxf6+ {[%clk 0:02:56]}  Nxf6 {[%clk 0:02:55]} 8. Bd3 {[%clk 0:02:55]}  O-O {[%clk 0:02:53]} 9. Qe2 {[%clk 0:02:53]}  h6 {[%clk 0:02:51]} 10. Bxf6 {[%clk 0:02:43]}  Bxf6 {[%clk 0:02:52]} 11. O-O-O {[%clk 0:02:42]}  Bd7 {[%clk 0:02:46]} 12. Qe4 {[%clk 0:02:35]}  g6 {[%clk 0:02:45]} 13. h4 {[%clk 0:02:28]}  Bc6 {[%clk 0:02:42]} 14. Qf4 {[%clk 0:02:29]}  Bxf3 {[%clk 0:02:38]} 15. Qxf3 {[%clk 0:02:24]}  Bg7 {[%clk 0:02:28]} 16. Bc4 {[%clk 0:02:08]}  b5 {[%clk 0:02:10]} 17. Bb3 {[%clk 0:01:50]}  a5 {[%clk 0:02:06]} 18. d5 {[%clk 0:01:47]}  e5 {[%clk 0:01:51]} 19. d6 {[%clk 0:01:46]}  cxd6 {[%clk 0:01:52]} 20. h5 {[%clk 0:01:42]}  a4 {[%clk 0:01:30]} 21. Bd5 {[%clk 0:01:41]}  Rc8 {[%clk 0:01:26]} 22. Qd3 {[%clk 0:01:20]}  Qg5+ {[%clk 0:01:20]} 23. Kb1 {[%clk 0:01:20]}  e4 {[%clk 0:01:06]} 24. Bxe4 {[%clk 0:00:50]}  Qf6 {[%clk 0:01:01]} 25. c3 {[%clk 0:00:50]}  a3 {[%clk 0:01:01]} 26. Qxd6 {[%clk 0:00:41]}  axb2 {[%clk 0:00:53]} 27. Qxf6 {[%clk 0:00:38]}  Bxf6 {[%clk 0:00:53]} 28. hxg6 {[%clk 0:00:35]}  Rxc3 {[%clk 0:00:48]} 29. Rxh6 {[%clk 0:00:18]}  Rfc8 {[%clk 0:00:44]} 30. gxf7+ {[%clk 0:00:17]}  Kxf7 {[%clk 0:00:36]} 31. Rxf6+ {[%clk 0:00:17]}  Kxf6 {[%clk 0:00:36]} 32. Kxb2 {[%clk 0:00:18]}  R3c5 {[%clk 0:00:33]} 33. g4 {[%clk 0:00:14]}  Kg5 {[%clk 0:00:30]} 34. f3 {[%clk 0:00:12]}  Kf4 {[%clk 0:00:28]} 35. Rd5 {[%clk 0:00:10]}  Rxd5 {[%clk 0:00:27]} 36. Bxd5 {[%clk 0:00:11]}  Rc5 {[%clk 0:00:23]} 37. Be4 {[%clk 0:00:11]}  Ke3 {[%clk 0:00:23]} 38. Kb3 {[%clk 0:00:11]}  Kd4 {[%clk 0:00:20]} 39. Kb4 {[%clk 0:00:10]}  Re5 {[%clk 0:00:18]} 40. a3 {[%clk 0:00:08]}  Ke3 {[%clk 0:00:18]} 41. Bc6 {[%clk 0:00:08]}  Kf4 {[%clk 0:00:16]} 42. Be4 {[%clk 0:00:08]}  Ke3 {[%clk 0:00:16]} 43. Bc6 {[%clk 0:00:07]}  Kf4 {[%clk 0:00:15]} 44. Bb7 {[%clk 0:00:07]}  Rg5 {[%clk 0:00:14]} 45. Bc6 {[%clk 0:00:07]}  Re5 {[%clk 0:00:13]} 1/2-1/2


[Site "https://www.chess.com"]

[Event "Titled Tuesday Blitz October 11 Late 2022"]
[White "Thiel, Thomas"]
[Black "Simonovic, Miroslav"]
[WhiteFideId "4615964"]
[BlackFideId "919152"]
[WhiteElo "2287"]
[BlackElo "2043"]
[Result "0-1"]
[Round "09"]
[TimeControl "180+1"]
[Date "2022.10.12"]
[WhiteClock "0:00:03"]
[BlackClock "0:00:18"]

1. e4 {[%clk 0:03:00]}  c5 {[%clk 0:03:00]} 2. Nc3 {[%clk 0:02:58]}  Nc6 {[%clk 0:03:00]} 3. Bb5 {[%clk 0:02:56]}  g6 {[%clk 0:03:00]} 4. Bxc6 {[%clk 0:02:52]}  dxc6 {[%clk 0:03:01]} 5. d3 {[%clk 0:02:51]}  Bg7 {[%clk 0:03:01]} 6. Be3 {[%clk 0:02:51]}  b6 {[%clk 0:03:00]} 7. Qd2 {[%clk 0:02:51]}  e5 {[%clk 0:02:59]} 8. h3 {[%clk 0:02:51]}  h6 {[%clk 0:02:59]} 9. Nge2 {[%clk 0:02:49]}  Ne7 {[%clk 0:03:00]} 10. O-O {[%clk 0:02:48]}  Be6 {[%clk 0:03:00]} 11. f4 {[%clk 0:02:43]}  exf4 {[%clk 0:02:59]} 12. Nxf4 {[%clk 0:02:43]}  Qd7 {[%clk 0:02:59]} 13. Nxe6 {[%clk 0:02:18]}  Qxe6 {[%clk 0:02:57]} 14. Qf2 {[%clk 0:02:17]}  O-O {[%clk 0:02:54]} 15. d4 {[%clk 0:02:15]}  cxd4 {[%clk 0:02:52]} 16. Bxd4 {[%clk 0:02:16]}  Bxd4 {[%clk 0:02:27]} 17. Qxd4 {[%clk 0:02:17]}  Rad8 {[%clk 0:02:27]} 18. Qe3 {[%clk 0:02:13]}  Kg7 {[%clk 0:02:22]} 19. e5 {[%clk 0:02:09]}  Nd5 {[%clk 0:02:04]} 20. Qe1 {[%clk 0:01:38]}  Rfe8 {[%clk 0:01:55]} 21. Nxd5 {[%clk 0:01:11]}  Qxd5 {[%clk 0:01:44]} 22. Qf2 {[%clk 0:01:04]}  Rxe5 {[%clk 0:01:43]} 23. Qf6+ {[%clk 0:01:03]}  Kg8 {[%clk 0:01:37]} 24. Rad1 {[%clk 0:00:57]}  Qc5+ {[%clk 0:01:10]} 25. Kh2 {[%clk 0:00:55]}  Rxd1 {[%clk 0:01:09]} 26. Rxd1 {[%clk 0:00:53]}  Rd5 {[%clk 0:00:52]} 27. Rf1 {[%clk 0:00:33]}  Qd6+ {[%clk 0:00:51]} 28. Qxd6 {[%clk 0:00:32]}  Rxd6 {[%clk 0:00:52]} 29. Rf3 {[%clk 0:00:29]}  f5 {[%clk 0:00:45]} 30. h4 {[%clk 0:00:25]}  Kf7 {[%clk 0:00:45]} 31. h5 {[%clk 0:00:23]}  Kf6 {[%clk 0:00:45]} 32. hxg6 {[%clk 0:00:23]}  Kxg6 {[%clk 0:00:46]} 33. Rc3 {[%clk 0:00:19]}  Kg5 {[%clk 0:00:38]} 34. a3 {[%clk 0:00:19]}  c5 {[%clk 0:00:32]} 35. b4 {[%clk 0:00:18]}  cxb4 {[%clk 0:00:29]} 36. axb4 {[%clk 0:00:19]}  Rd4 {[%clk 0:00:29]} 37. Rb3 {[%clk 0:00:13]}  Rc4 {[%clk 0:00:27]} 38. c3 {[%clk 0:00:12]}  Kg4 {[%clk 0:00:20]} 39. Ra3 {[%clk 0:00:11]}  f4 {[%clk 0:00:18]} 40. Rxa7 {[%clk 0:00:03]}  Rxc3 {[%clk 0:00:18]} 0-1


[Site "https://www.chess.com"]

[Event "Titled Tuesday Blitz October 11 Late 2022"]
[White "Timmermans, Mark"]
[Black "Sarana, Alexey"]
[WhiteFideId "1026399"]
[BlackFideId "24133795"]
[WhiteElo "2460"]
[BlackElo "2689"]
[Result "0-1"]
[Round "09"]
[TimeControl "180+1"]
[Date "2022.10.11"]
[WhiteClock "0:01:37"]
[BlackClock "0:02:36"]

1. e4 {[%clk 0:02:59]}  c5 {[%clk 0:02:52]} 2. Nf3 {[%clk 0:02:57]}  d6 {[%clk 0:02:53]} 3. d4 {[%clk 0:02:56]}  cxd4 {[%clk 0:02:54]} 4. Nxd4 {[%clk 0:02:57]}  Nf6 {[%clk 0:02:54]} 5. Nc3 {[%clk 0:02:56]}  a6 {[%clk 0:02:55]} 6. Be3 {[%clk 0:02:54]}  e5 {[%clk 0:02:55]} 7. Nb3 {[%clk 0:02:53]}  Be6 {[%clk 0:02:55]} 8. f3 {[%clk 0:02:54]}  Nbd7 {[%clk 0:02:56]} 9. Qd2 {[%clk 0:02:54]}  Be7 {[%clk 0:02:54]} 10. O-O-O {[%clk 0:02:54]}  b5 {[%clk 0:02:55]} 11. g4 {[%clk 0:02:54]}  b4 {[%clk 0:02:55]} 12. Nd5 {[%clk 0:02:53]}  Bxd5 {[%clk 0:02:55]} 13. exd5 {[%clk 0:02:54]}  Nb6 {[%clk 0:02:56]} 14. Qxb4 {[%clk 0:02:39]}  Nfxd5 {[%clk 0:02:54]} 15. Bxb6 {[%clk 0:02:37]}  Nxb6 {[%clk 0:02:55]} 16. Kb1 {[%clk 0:02:22]}  O-O {[%clk 0:02:53]} 17. Qa5 {[%clk 0:02:17]}  d5 {[%clk 0:02:51]} 18. Be2 {[%clk 0:02:15]}  Qc7 {[%clk 0:02:46]} 19. h4 {[%clk 0:02:04]}  Rfc8 {[%clk 0:02:45]} 20. Rc1 {[%clk 0:02:05]}  Qb7 {[%clk 0:02:42]} 21. Ka1 {[%clk 0:01:37]}  Nc4 {[%clk 0:02:39]} 22. Bxc4 {[%clk 0:01:37]}  dxc4 {[%clk 0:02:38]} 23. Nd2 {[%clk 0:01:37]}  Bb4 {[%clk 0:02:36]} 0-1


[Site "https://www.chess.com"]

[Event "Titled Tuesday Blitz October 11 Late 2022"]
[White "Vlassov, Nikolai"]
[Black "Evdokimov, Alexey"]
[WhiteFideId "4103360"]
[BlackFideId "24162450"]
[WhiteElo "2324"]
[BlackElo "2154"]
[Result "1-0"]
[Round "09"]
[TimeControl "180+1"]
[Date "2022.10.12"]
[WhiteClock "0:01:31"]
[BlackClock "0:00:30"]

1. e4 {[%clk 0:03:00]}  c6 {[%clk 0:03:00]} 2. d4 {[%clk 0:03:00]}  d5 {[%clk 0:03:00]} 3. e5 {[%clk 0:03:01]}  Bf5 {[%clk 0:03:00]} 4. Nf3 {[%clk 0:03:01]}  e6 {[%clk 0:03:00]} 5. Be2 {[%clk 0:03:01]}  Nd7 {[%clk 0:02:58]} 6. O-O {[%clk 0:03:02]}  Ne7 {[%clk 0:02:55]} 7. Nbd2 {[%clk 0:03:01]}  c5 {[%clk 0:02:50]} 8. c4 {[%clk 0:02:59]}  dxc4 {[%clk 0:02:40]} 9. Nxc4 {[%clk 0:02:59]}  Nd5 {[%clk 0:02:33]} 10. Bg5 {[%clk 0:02:48]}  f6 {[%clk 0:02:25]} 11. exf6 {[%clk 0:02:46]}  gxf6 {[%clk 0:02:25]} 12. Bh4 {[%clk 0:02:46]}  Be7 {[%clk 0:02:09]} 13. Qb3 {[%clk 0:02:24]}  Nf4 {[%clk 0:02:04]} 14. Rfe1 {[%clk 0:02:19]}  Rg8 {[%clk 0:01:20]} 15. Bg3 {[%clk 0:02:16]}  Nxe2+ {[%clk 0:01:21]} 16. Rxe2 {[%clk 0:02:16]}  b6 {[%clk 0:01:14]} 17. Rae1 {[%clk 0:02:11]}  Kf7 {[%clk 0:00:52]} 18. d5 {[%clk 0:02:01]}  Nf8 {[%clk 0:00:38]} 19. d6 {[%clk 0:01:52]}  Bxd6 {[%clk 0:00:37]} 20. Nxd6+ {[%clk 0:01:50]}  Kg6 {[%clk 0:00:32]} 21. Nh4+ {[%clk 0:01:45]}  Kg7 {[%clk 0:00:31]} 22. Nhxf5+ {[%clk 0:01:34]}  exf5 {[%clk 0:00:31]} 23. Qf7+ {[%clk 0:01:31]}  Kh8 {[%clk 0:00:30]} 24. Re8 {[%clk 0:01:31]} 1-0


[Site "https://www.chess.com"]

[Event "Titled Tuesday Blitz October 11 Late 2022"]
[White "Zaloznyy, Mike"]
[Black "Shapiro, Daniel"]
[WhiteFideId "2023075"]
[BlackFideId "2001780"]
[WhiteElo "2126"]
[BlackElo "2201"]
[Result "0-1"]
[Round "09"]
[TimeControl "180+1"]
[Date "2022.10.12"]
[WhiteClock "0:00:21"]
[BlackClock "0:00:06"]

1. e4 {[%clk 0:03:00]}  c5 {[%clk 0:02:59]} 2. a3 {[%clk 0:03:00]}  g6 {[%clk 0:02:52]} 3. b4 {[%clk 0:03:00]}  b6 {[%clk 0:02:51]} 4. Bb2 {[%clk 0:03:00]}  Nf6 {[%clk 0:02:44]} 5. e5 {[%clk 0:02:59]}  Nd5 {[%clk 0:02:44]} 6. c4 {[%clk 0:02:56]}  Nc7 {[%clk 0:02:35]} 7. Nf3 {[%clk 0:02:44]}  Bg7 {[%clk 0:02:35]} 8. Be2 {[%clk 0:02:39]}  O-O {[%clk 0:02:34]} 9. O-O {[%clk 0:02:39]}  d6 {[%clk 0:02:23]} 10. Qb3 {[%clk 0:02:38]}  Nc6 {[%clk 0:02:15]} 11. exd6 {[%clk 0:02:34]}  Qxd6 {[%clk 0:02:11]} 12. Bxg7 {[%clk 0:02:29]}  Kxg7 {[%clk 0:02:12]} 13. b5 {[%clk 0:02:29]}  Nd4 {[%clk 0:02:04]} 14. Nxd4 {[%clk 0:02:19]}  Qxd4 {[%clk 0:02:03]} 15. Nc3 {[%clk 0:02:14]}  Qxd2 {[%clk 0:01:52]} 16. Bf3 {[%clk 0:02:13]}  Rb8 {[%clk 0:01:46]} 17. Rad1 {[%clk 0:02:11]}  Qf4 {[%clk 0:01:43]} 18. Rfe1 {[%clk 0:02:02]}  Re8 {[%clk 0:01:06]} 19. Re4 {[%clk 0:01:57]}  Qf6 {[%clk 0:01:03]} 20. Rde1 {[%clk 0:01:46]}  Bb7 {[%clk 0:00:57]} 21. R4e3 {[%clk 0:01:46]}  Ne6 {[%clk 0:00:29]} 22. Bxb7 {[%clk 0:01:42]}  Rxb7 {[%clk 0:00:28]} 23. Nd5 {[%clk 0:01:42]}  Qg5 {[%clk 0:00:20]} 24. Re5 {[%clk 0:01:35]}  Qh6 {[%clk 0:00:18]} 25. Qb2 {[%clk 0:01:26]}  Nd4 {[%clk 0:00:18]} 26. Nxe7 {[%clk 0:01:20]}  Rd8 {[%clk 0:00:12]} 27. Nc6 {[%clk 0:01:14]}  Rd6 {[%clk 0:00:11]} 28. Rd5 {[%clk 0:01:06]}  Rxd5 {[%clk 0:00:10]} 29. cxd5 {[%clk 0:01:06]}  Rd7 {[%clk 0:00:11]} 30. Nxd4 {[%clk 0:01:03]}  cxd4 {[%clk 0:00:09]} 31. Qxd4+ {[%clk 0:01:03]}  f6 {[%clk 0:00:10]} 32. d6 {[%clk 0:01:00]}  Qg5 {[%clk 0:00:10]} 33. g3 {[%clk 0:00:50]}  Qxb5 {[%clk 0:00:08]} 34. Re7+ {[%clk 0:00:49]}  Rxe7 {[%clk 0:00:07]} 35. dxe7 {[%clk 0:00:50]}  Qe8 {[%clk 0:00:07]} 36. Qd8 {[%clk 0:00:49]}  Kf7 {[%clk 0:00:07]} 37. Qd5+ {[%clk 0:00:35]}  Kxe7 {[%clk 0:00:07]} 38. Qe4+ {[%clk 0:00:34]}  Kf7 {[%clk 0:00:07]} 39. Qd5+ {[%clk 0:00:34]}  Qe6 {[%clk 0:00:07]} 40. Qb7+ {[%clk 0:00:34]}  Qe7 {[%clk 0:00:07]} 41. Qd5+ {[%clk 0:00:34]}  Kg7 {[%clk 0:00:07]} 42. h4 {[%clk 0:00:31]}  h5 {[%clk 0:00:06]} 43. Kg2 {[%clk 0:00:28]}  Qxa3 {[%clk 0:00:06]} 44. Qd7+ {[%clk 0:00:27]}  Kf8 {[%clk 0:00:06]} 45. Qd8+ {[%clk 0:00:27]}  Kf7 {[%clk 0:00:06]} 46. Qd7+ {[%clk 0:00:27]}  Qe7 {[%clk 0:00:06]} 47. Qd5+ {[%clk 0:00:27]}  Kg7 {[%clk 0:00:06]} 48. g4 {[%clk 0:00:24]}  hxg4 {[%clk 0:00:04]} 49. h5 {[%clk 0:00:24]}  gxh5 {[%clk 0:00:04]} 50. Qxh5 {[%clk 0:00:25]}  Qe4+ {[%clk 0:00:04]} 51. Kg3 {[%clk 0:00:24]}  Qf3+ {[%clk 0:00:03]} 52. Kh2 {[%clk 0:00:21]}  Qh3+ {[%clk 0:00:03]} 53. Qxh3 {[%clk 0:00:20]}  gxh3 {[%clk 0:00:04]} 54. Kxh3 {[%clk 0:00:21]}  a5 {[%clk 0:00:05]} 55. Kg4 {[%clk 0:00:21]}  a4 {[%clk 0:00:05]} 56. Kf4 {[%clk 0:00:21]}  a3 {[%clk 0:00:06]} 0-1


[Site "https://www.chess.com"]

[Event "Titled Tuesday Blitz October 11 Late 2022"]
[White "Ballester Llagaria, Luis Eduardo"]
[Black "Fernandez De La Vara, Arnaldo"]
[WhiteFideId "2297620"]
[BlackFideId "3518388"]
[WhiteElo "2344"]
[BlackElo "2387"]
[Result "0-1"]
[Round "10"]
[TimeControl "180+1"]
[Date "2022.10.11"]
[WhiteClock "0:00:33"]
[BlackClock "0:01:09"]

1. e4 {[%clk 0:03:00]}  c5 {[%clk 0:03:00]} 2. Nc3 {[%clk 0:03:00]}  a6 {[%clk 0:02:58]} 3. Nf3 {[%clk 0:03:00]}  e6 {[%clk 0:02:58]} 4. d4 {[%clk 0:03:01]}  cxd4 {[%clk 0:02:59]} 5. Nxd4 {[%clk 0:03:01]}  Qc7 {[%clk 0:03:00]} 6. Bd3 {[%clk 0:03:02]}  Nf6 {[%clk 0:03:00]} 7. Qe2 {[%clk 0:03:02]}  d6 {[%clk 0:03:00]} 8. f4 {[%clk 0:03:01]}  Nbd7 {[%clk 0:03:01]} 9. g4 {[%clk 0:03:02]}  h6 {[%clk 0:02:55]} 10. Bd2 {[%clk 0:03:00]}  g6 {[%clk 0:02:47]} 11. O-O-O {[%clk 0:02:52]}  Bg7 {[%clk 0:02:45]} 12. h4 {[%clk 0:02:49]}  h5 {[%clk 0:02:28]} 13. g5 {[%clk 0:02:12]}  Ng4 {[%clk 0:02:28]} 14. Nb3 {[%clk 0:02:12]}  b5 {[%clk 0:02:23]} 15. f5 {[%clk 0:01:57]}  Be5 {[%clk 0:02:21]} 16. Rhf1 {[%clk 0:01:41]}  Bb7 {[%clk 0:02:18]} 17. Kb1 {[%clk 0:01:30]}  b4 {[%clk 0:02:06]} 18. Na4 {[%clk 0:01:19]}  Bc6 {[%clk 0:01:57]} 19. fxe6 {[%clk 0:01:17]}  fxe6 {[%clk 0:01:56]} 20. Bc4 {[%clk 0:01:05]}  Bxa4 {[%clk 0:01:44]} 21. Bxe6 {[%clk 0:01:05]}  Bb5 {[%clk 0:01:45]} 22. Qf3 {[%clk 0:00:59]}  Rf8 {[%clk 0:01:38]} 23. Bf7+ {[%clk 0:00:57]}  Ke7 {[%clk 0:01:28]} 24. Bxb4 {[%clk 0:00:47]}  Bxf1 {[%clk 0:01:15]} 25. Rxf1 {[%clk 0:00:48]}  Nh2 {[%clk 0:01:09]} 26. Qh3 {[%clk 0:00:33]}  Rxf7 {[%clk 0:01:09]} 0-1


[Site "https://www.chess.com"]